Cogmind - Beta 14 @@@ ROGUE MODE // 2024.09.10 @ 10:10:28 Player: THN-L0C Result: Self-destructed Performance ------------- Evolutions (2) 1000 Regions Visited (5) 1000 Robots Destroyed (57) 285 Value Destroyed (1714) 1714 Prototype IDs (24) 480 Alien Tech Used (0) 0 Bonus (358) 358 TOTAL SCORE: 4837 Bonus ------- High Alert Combat Kills 17 Follower Combat Kills 41 Aligned with FarCom 300 Cogmind --------- Core Integrity 418/550 Matter 270/300 Energy 288/290 System Corruption 0% Temperature Cool (0) Movement Treading (156) Location -8/Materials Parts ------- > --- POWER (1) -------- Improved Deuterium Engine > --- PROPULSION (4) --- Light Treads Light Treads Light Treads Advanced Treads > --- UTILITY (4) ------ Improved Heat Sink High-capacity Storage Unit Weapon Cycler Improved Weapon Shielding > --- WEAPON (2) ------- Improved Medium Laser Heavy Assault Rifle > --- INVENTORY (20) --- Light Deuterium Engine Light Nuclear Core Large Storage Unit High-capacity Matter Pod (200) High-capacity Matter Pod (200) Improved Terrain Scanner Seismic Detector Improved Weapon Shielding Light Armor Plating Component Analysis Suite Improved Trap Extractor (0/6) AWS/Thermal Heavy Particle Cannon Autogun Flak Cannon Shock Bomb Launcher Improved Grenade Launcher Remote Datajack Great Maul Peak State ------------ > --- POWER ------------ Improved Deuterium Engine > --- PROPULSION ------- Light Treads Light Treads Light Treads Advanced Treads > --- UTILITY ---------- Improved Heat Sink High-capacity Storage Unit Weapon Cycler Improved Weapon Shielding > --- WEAPON ----------- Heavy Assault Rifle Assault Cannon > --- INVENTORY -------- Light Deuterium Engine Light Nuclear Core Large Storage Unit High-capacity Matter Pod High-capacity Matter Pod Improved Terrain Scanner Seismic Detector Improved Weapon Shielding Light Armor Plating Component Analysis Suite Improved Trap Extractor AWS/Thermal Heavy Particle Cannon Autogun Flak Cannon Shock Bomb Launcher Improved Grenade Launcher Remote Datajack Great Maul [Rating: 32] Favorites ----------- Power Light Ion Engine Engine Light Ion Engine Power Core Light Nuclear Core Propulsion Light Treads Treads Light Treads Utility Light Armor Plating Device Improved Heat Sink Storage Large Storage Unit Processor Targeting Computer Protection Light Armor Plating Weapon Assault Rifle Energy Gun Improved Medium Laser Ballistic Gun Assault Rifle Ballistic Cannon Assault Cannon Build | -11 -10 -10 -10 -9 -8 ------- Run | Yrd Mat Min Exi Min Mat Slots Evolved 4 | . . . . . 4 Power . | . . . . . . Propulsion 2 | . . . . . 2 Utility 2 | . . . . . 2 Weapon . | . . . . . . Parts Attached 47 | 7 11 2 2 . 25 Power 6 | 1 1 . . . 4 Engine 3 | 1 1 . . . 1 Core 3 | . . . . . 3 Reactor . | . . . . . . Propulsion 9 | 2 . 1 1 . 5 Treads 9 | 2 . 1 1 . 5 Leg . | . . . . . . Wheel . | . . . . . . Hover . | . . . . . . Flight . | . . . . . . Utility 21 | 2 8 1 . . 10 Device 5 | 1 2 . . . 2 Storage 4 | 1 2 . . . 1 Processor 1 | . 1 . . . . Hackware . | . . . . . . Protection 11 | . 3 1 . . 7 Artifact . | . . . . . . Weapon 11 | 2 2 . 1 . 6 Energy Gun 1 | . . . . . 1 Energy Cannon . | . . . . . . Ballistic Gun 9 | 2 2 . 1 . 4 Ballistic Cannon 1 | . . . . . 1 Launcher . | . . . . . . Special Weapon . | . . . . . . Impact Weapon . | . . . . . . Slashing Weapon . | . . . . . . Piercing Weapon . | . . . . . . Special Melee Weapon . | . . . . . . Unidentified Prototypes 1 | . . . . . 1 Parts Lost 12 | . 1 1 . . 10 Power 1 | . . . . . 1 Propulsion 2 | . . . . . 2 Utility 7 | . 1 1 . . 5 Weapon 2 | . . . . . 2 Highest Loss Streak 7 | . 1 1 . . 7 To Critical Strikes . | . . . . . . Average Slot Usage (%) 98 | . 99 100 100 100 95 Engine 10 | . 14 14 14 14 3 Core 1 | . . . . . 5 Treads 30 | . 28 28 28 28 35 Device 3 | . 4 . . . 4 Storage 12 | . 14 14 14 14 9 Processor 3 | . 8 1 . . . Protection 10 | . . 12 14 14 19 Ballistic Gun 23 | . 27 28 28 28 14 Ballistic Cannon 1 | . . . . . 3 Peak Build Rating 32 | 7 8 11 13 13 32 Average Rating 14 | 5 7 8 12 13 26 On Entrance 8 | . 7 8 11 13 13 Naked Turns . | . . . . . . Heaviest Build 63 | 13 27 30 30 30 63 Greatest Support 82 | 40 40 42 42 42 82 Greatest Overweight (x) 1 | . . . . . 1 Average Overweight (x) . | . . . . . . Largest Inventory Capacity 20 | 8 15 15 15 15 20 Average Capacity 13 | 7 8 15 15 15 18 Most Carried 20 | 1 11 15 15 15 20 Average Carried 12 | . 7 11 14 15 18 Final Capacity 20 | 8 15 15 15 15 20 Final Carried 20 | 1 11 15 15 15 20 Class Distribution -------------------- 85% | Mutant 14% | Scavenger-Mutant Dominant Class ---------------- Mutant | -10/Materials Mutant | -10/Mines Mutant | -10/Exiles Mutant | -9/Mines Mutant | -8/Materials Resources | -11 -10 -10 -10 -9 -8 ----------- Run | Yrd Mat Min Exi Min Mat Matter Collected 2329 | 233 452 86 595 . 963 Remotely . | . . . . . . Salvage Created 2021 | 35 522 86 . . 1378 Parts 123 | 6 31 3 . . 83 Haulers Intercepted 3 | . 2 . . . 1 Recyclers Shooed . | . . . . . . Parts Field Recycled . | . . . . . . Retrieved Matter . | . . . . . . Parts Self-Destructed . | . . . . . . Prevented . | . . . . . . Kills | -11 -10 -10 -10 -9 -8 ------- Run | Yrd Mat Min Exi Min Mat Combat Hostiles Destroyed 48 | . 12 2 . . 34 Guns 44 | . 12 2 . . 30 Cannons 4 | . . . . . 4 Classes Destroyed 8 | 1 5 . . . 2 Builder 1 | . 1 . . . . Tunneler 2 | 2 . . . . . Hauler 3 | . 2 . . . 1 Operator 2 | . 1 . . . 1 Watcher 1 | . . . . . 1 Swarmer 16 | . 6 . . . 10 Grunt 27 | . 6 2 . . 19 Sentry 5 | . . . . . 5 Best Kill Streak 6 | 2 4 1 . . 6 Combat Bots Only 6 | . 3 1 . . 6 Max Kills in Single Turn 2 | 1 1 1 . . 2 Gunslinging 1 | . . . . . 1 Exploded . | . . . . . . Melee . | . . . . . . Uniques/NPCs Destroyed . | . . . . . . Combat | -11 -10 -10 -10 -9 -8 -------- Run | Yrd Mat Min Exi Min Mat Hostile Shots Fired 224 | . 55 15 . . 154 Missed 49 | . 12 5 . . 32 Damage Taken 2453 | . 510 139 . . 1804 Core 196 | . 64 . . . 132 Absorbed by Shields . | . . . . . . Redirected to Shielding 27 | . . . . . 27 Regen/Repaired (Parts) 98 | . 68 . . . 30 Core Remaining (%) 87 | 100 . . . 74 . Volleys Fired 168 | 2 48 11 . . 107 Largest 2 | 2 2 2 . . 2 Hottest 72 | 40 40 40 . . 72 Shots Fired 324 | 4 96 22 . . 202 Gun 299 | 4 96 22 . . 177 Cannon 25 | . . . . . 25 Launcher . | . . . . . . Special . | . . . . . . Kinetic 324 | 4 96 22 . . 202 Thermal . | . . . . . . Explosive . | . . . . . . Electromagnetic . | . . . . . . Robot Hit Streak 15 | 3 11 15 . . 12 Robot Miss Streak 5 | . 3 1 . . 5 Penetration Max 1 | . . . . . 1 Secondary Targets 3 | . . . . . 3 Max Gunslinging Chain 1 | . . . . . 1 Shots Hit Robots 220 | 3 57 19 . . 141 Core Hits 100 | 2 27 5 . . 66 Critical Kills 2 | . . . . . 2 Critical Parts Destroyed . | . . . . . . Critical Strikes 2 | . . . . . 2 Destroy 2 | . . . . . 2 Melee Attacks . | . . . . . . Impact . | . . . . . . Slashing . | . . . . . . Piercing . | . . . . . . Sneak Attacks . | . . . . . . Combat Hostiles . | . . . . . . Follow-up Attacks . | . . . . . . Damage Inflicted 3782 | 39 722 261 . 6 2754 Guns 3396 | 39 722 261 . . 2374 Cannons 372 | . . . . . 372 Explosions . | . . . . . . Melee . | . . . . . . Ramming 14 | . . . . 6 8 Kinetic 3768 | 39 722 261 . . 2746 Thermal . | . . . . . . Explosive . | . . . . . . Electromagnetic . | . . . . . . Impact . | . . . . . . Slashing . | . . . . . . Piercing . | . . . . . . Highest Corruption . | . . . . . . Average Corruption . | . . . . . . Corruption Purged . | . . . . . . Corruption Blocked . | . . . . . . Overload Shots . | . . . . . . Overflow Damage 27 | . . . . . 27 Projectiles 27 | . . . . . 27 Explosions . | . . . . . . Melee . | . . . . . . Knockbacks 6 | . . . . . 6 Impact . | . . . . . . Kinetic 5 | . . . . . 5 Secondary 1 | . . . . . 1 Self-Inflicted Damage . | . . . . . . Shots . | . . . . . . Rammed 2 | . . . . 1 1 Targets Rammed 2 | . . . . 1 1 Kicked . | . . . . . . Crushed . | . . . . . . Highest Temperature 207 | . 39 6 . . 207 Average Temperature 54 | . 13 3 . . 62 Received Heat Transfer 1107 | . 216 81 . . 810 Siege Activations . | . . . . . . Robots Corrupted . | . . . . . . Combat Hostiles . | . . . . . . Parts Fried . | . . . . . . Impact Corruptions 1 | . . . . . 1 Robots Melted . | . . . . . . Combat Hostiles . | . . . . . . Parts Melted . | . . . . . . Heat Transferred . | . . . . . . Parts Sabotaged . | . . . . . . Parts Stolen . | . . . . . . Parts Stripped . | . . . . . . Power Chain Reactions . | . . . . . . Alert | -11 -10 -10 -10 -9 -8 ------- Run | Yrd Mat Min Exi Min Mat Peak Influence 513 | 10 182 56 . . 513 Initial 16 | . 6 16 . . . Average 127 | 3 78 49 . . 239 Maximum Alert Level 2 | . . . . . 2 Low Security (%) 75 | 100 100 100 . 100 35 Level 1 19 | . . . . . 51 Level 2 4 | . . . . . 13 Level 3 . | . . . . . . Level 4 . | . . . . . . Level 5 . | . . . . . . High Security . | . . . . . . Max Security . | . . . . . . Squads Dispatched 6 | . 1 . . . 5 Investigation 1 | . 1 . . . . Extermination . | . . . . . . Reinforcement 5 | . . . . . 5 Assault . | . . . . . . Garrison . | . . . . . . Intercept . | . . . . . . Searches Triggered . | . . . . . . Construction Impeded 1 | . . . . . 1 Haulers Reinforced . | . . . . . . Active Scanning Responses . | . . . . . . Cargo Convoy Interrupts . | . . . . . . Stealth | -11 -10 -10 -10 -9 -8 --------- Run | Yrd Mat Min Exi Min Mat Distress Signals 6 | . 1 . . . 5 Communications Jammed . | . . . . . . Distress Signals . | . . . . . . Times Spotted 74 | . 24 2 . . 48 Peak Tracking Total 7 | . 4 2 . . 7 Tactical Retreats 5 | . 1 . . . 4 Traps | -11 -10 -10 -10 -9 -8 ------- Run | Yrd Mat Min Exi Min Mat Traps Triggered 4 | . 2 . . . 2 Indirectly . | . . . . . . Trap Hack Attempts . | . . . . . . Triggered . | . . . . . . Disarmed . | . . . . . . Reprogrammed . | . . . . . . Reused . | . . . . . . Traps Extracted . | . . . . . . Installed . | . . . . . . Triggered . | . . . . . . Machines | -11 -10 -10 -10 -9 -8 ---------- Run | Yrd Mat Min Exi Min Mat Machines Disabled 4 | . . . . . 4 Max in Single Turn 1 | . . . . . 1 Garrison Access 1 | . . . . . 1 Machines Repaired . | . . . . . . Machines Dismantled . | . . . . . . Machines Sabotaged . | . . . . . . Overloaded Fab Kills . | . . . . . . Hacking | -11 -10 -10 -10 -9 -8 --------- Run | Yrd Mat Min Exi Min Mat Machines Accessed 22 | . 9 1 1 . 11 Terminals 14 | . 8 . . . 6 Fabricators . | . . . . . . Repair Stations 3 | . 1 . . . 2 Recycling Units 1 | . . . . . 1 Scanalyzers 1 | . . . . . 1 Garrison Access 1 | . . . . . 1 Total Hacks 54 | . 28 1 1 . 24 Successful 37 | . 20 1 1 . 15 Failed 16 | . 7 . . . 9 Catastrophic 3 | . . . . . 3 Database Lockouts 1 | . 1 . . . . Manual 33 | . 21 . 1 . 11 Terminals 41 | . 26 . . . 15 Fabricators . | . . . . . . Repair Stations 5 | . 2 . . . 3 Recycling Units 1 | . . . . . 1 Scanalyzers 3 | . . . . . 3 Garrison Access 2 | . . . . . 2 Terminal Hacks 12 | . 6 1 1 . 4 Robot Analysis 2 | . 2 . . . . Open Door 1 | . . 1 . . . Emergency Access Points 1 | . . . . . 1 Terminal Index 1 | . 1 . . . . Unreport Threat 2 | . . . . . 2 Locate Traps 3 | . 2 . . . 1 Zone Layout 1 | . 1 . . . . Derelict Proto ID Bank 1 | . . . 1 . . Fabricator Hacks . | . . . . . . Repair Station Hacks 4 | . 2 . . . 2 Scan Component 2 | . 1 . . . 1 Repair 2 | . 1 . . . 1 Recycling Unit Hacks 1 | . . . . . 1 Retrieve Components 1 | . . . . . 1 Scanalyzer 2 | . . . . . 2 Insert Component 1 | . . . . . 1 Analyze 1 | . . . . . 1 Garrison Access Hacks 1 | . . . . . 1 Seal Access 1 | . . . . . 1 Unauthorized Hacks 17 | . 12 . . . 5 Terminals 17 | . 12 . . . 5 Botnet 4 | . 4 . . . . Operators 1 | . 1 . . . . Skim 12 | . 7 . . . 5 Fabricators . | . . . . . . Repair Stations . | . . . . . . Recycling Units . | . . . . . . Scanalyzers . | . . . . . . Garrison Access . | . . . . . . Data Cores Recovered 1 | . 1 . . . . Used 1 | . 1 . . . . Hacking Detections 12 | . 6 . . . 6 Full Trace Events . | . . . . . . Feedback Events . | . . . . . . Feedback Blocked . | . . . . . . Robot Schematics Acquired . | . . . . . . Robots Built . | . . . . . . Authchips . | . . . . . . Time . | . . . . . . Total Robot Build Rating . | . . . . . . Part Schematics Acquired 1 | . . . . . 1 Parts Built . | . . . . . . Authchips . | . . . . . . Time . | . . . . . . Total Part Build Rating . | . . . . . . Parts Repaired 2 | . 1 . . . 1 Time 70 | . 26 . . . 44 Parts Recycled . | . . . . . . Recycled Matter . | . . . . . . Retrieved Matter . | . . . . . . Retrieved Components 6 | . . . . . 6 Parts Scanalyzed 1 | . . . . . 1 Part Schematics Acquired 1 | . . . . . 1 Parts Damaged . | . . . . . . Bothacking | -11 -10 -10 -10 -9 -8 ------------ Run | Yrd Mat Min Exi Min Mat Used RIF Installer . | . . . . . . Robots Hacked . | . . . . . . Non-combat . | . . . . . . Combat . | . . . . . . Robot Hacks Applied . | . . . . . . Relay Couplers Released . | . . . . . . Fabnet Peak Effective % . | . . . . . . Robots Rewired . | . . . . . . Allies Hacked . | . . . . . . Hacks Repelled . | . . . . . . Allies | -11 -10 -10 -10 -9 -8 -------- Run | Yrd Mat Min Exi Min Mat Total Allies 3 | . . . . 3 . Largest Group 3 | . . . . 3 3 Highest-Rated Group 40 | . . . . 40 40 Highest-Rated Ally 16 | . . . . 16 16 Total Orders . | . . . . . . Ally Attacks 12 | . . . . . 12 Total Damage 137 | . . . . . 137 Kills 1 | . . . . . 1 Allies Corrupted . | . . . . . . Allies Melted . | . . . . . . Intel | -11 -10 -10 -10 -9 -8 ------- Run | Yrd Mat Min Exi Min Mat Robot Analysis Total 2 | . 2 . . . . Derelict Logs Recovered 2 | . . . . 2 . Drone Launches . | . . . . . . Drone Recoveries . | . . . . . . Exploration | -11 -10 -10 -10 -9 -8 ------------- Run | Yrd Mat Min Exi Min Mat Turns Passed 4679 | 84 1681 345 574 429 1566 Spaces Moved 2222 | 44 699 136 372 277 694 Core 3 | 3 . . . . . Treads 2219 | 41 699 136 372 277 694 Legs . | . . . . . . Wheels . | . . . . . . Hover . | . . . . . . Flight . | . . . . . . Fastest Speed 50 | 50 160 152 152 152 155 Average Speed 156 | 152 160 156 152 152 156 Slowest Speed 232 | 160 160 160 152 152 232 Overloaded Moves . | . . . . . . Propulsion Burnouts . | . . . . . . Robots Hopped . | . . . . . . Cave-ins Triggered . | . . . . . . Exploration Rate (%) 52 | 4 96 27 69 57 61 Regions Visited 5 Branch Regions 3 Pre-discovered Areas 5 | . 1 . . 2 2 Known Exits Taken . | . . . . . . Unknown Exits Taken 5 | 1 1 1 1 1 . Scrap Searched 2 | . . . . 2 . Spaces Dug . | . . . . . . Terrain Destroyed 4 | . . . . . 4 Melee . | . . . . . . Projectile 4 | . . . . . 4 AOE . | . . . . . . Terrain Rammed . | . . . . . . Walls Destroyed . | . . . . . . Machines Disabled . | . . . . . . Actions | -11 -10 -10 -10 -9 -8 --------- Run | Yrd Mat Min Exi Min Mat Total 3109 | 54 1165 245 384 285 976 Wait 617 | 1 393 93 . 4 126 Move 2217 | 43 698 135 371 276 694 Hop . | . . . . . . Pick Up 37 | 1 11 4 5 2 14 Fast Attach 15 | 7 1 . . . 7 Attach 9 | . 1 1 . . 7 Detach . | . . . . . . Swap 23 | . 9 1 2 . 11 Drop 21 | . 4 . 6 2 9 Fire 168 | 2 48 11 . . 107 Melee . | . . . . . . Ram . | . . . . . . Kick . | . . . . . . Crush 2 | . . . . 1 1 Escape Stasis . | . . . . . . Rewire . | . . . . . . Trap . | . . . . . . Miscellaneous . | . . . . . . Route ------- -11/Scrapyard -10/Materials (discovered 5 exits: [*Mat x2] / *Min x2 / *Sub) -10/Mines (discovered 2 exits: [*Mat] / *Exi) -10/Exiles -9/Mines -8/Materials (discovered 3 exits: *Fac x3) History --------- Turn | Location | Event 15 | -11/Scrapyard | Discovered new exit (range 16) 85 | -11/Scrapyard | Entered Materials 314 | -10/Materials | Build established: Mutant 499 | -10/Materials | Discovered new exit (range 14) 656 | -10/Materials | Discovered new exit (range 15) 723 | -10/Materials | Identified exit to Subcaves 786 | -10/Materials | Learned location of Subcaves (-10) 841 | -10/Materials | Learned Storage trap positions 884 | -10/Materials | Learned Recycling recycling unit intel 915 | -10/Materials | Learned location of 1 exit from Storage 956 | -10/Materials | Learned 2 Storage zone layouts 1009 | -10/Materials | Learned Storage non-interactive machine intel 1263 | -10/Materials | Central database locked down 1311 | -10/Materials | Discovered new exit (range 15) 1408 | -10/Materials | Discovered new exit (range 12) 1646 | -10/Materials | Repaired Assault Rifle? 1766 | -10/Materials | Entered Mines 1838 | -10/Mines | Discovered new exit (range 3) 1868 | -10/Mines | Met a Derelict bent on vengeance 1920 | -10/Mines | Met a Derelict who couldn't figure out how to use a Trap Extractor 2103 | -10/Mines | Deemed a non-threat by the Exiles lab entrance 2105 | -10/Mines | Discovered new exit (range 5) 2111 | -10/Mines | Entered Exiles 2146 | -10/Exiles | Met 8R-AWN 2174 | -10/Exiles | Met EX-HEX 2216 | -10/Exiles | Met EX-BIN 2235 | -10/Exiles | Aligned with FarCom system 2236 | -10/Exiles | Given EX-Vault access code 2280 | -10/Exiles | Opened EX-Vault 2293 | -10/Exiles | Found AWS/Thermal 2326 | -10/Exiles | Warned to stay clear of 0b10 Research branches 2372 | -10/Exiles | Met EX-DEC 2672 | -10/Exiles | Discovered new exit (range 10) 2685 | -10/Exiles | Left Exiles lab with AWS/Thermal 2685 | -10/Exiles | Entered Mines 2796 | -9/Mines | Assisted by bots powering up and referring to "LRC-V3" 2866 | -9/Mines | Learned location of Storage (-9) 3100 | -9/Mines | Discovered new exit (range 3) 3114 | -9/Mines | Entered Materials 3114 | -8/Materials | Accompanied by 3 allies 3114 | -8/Materials | Evolved 4 slots: Propulsion x2, Utility x2 3345 | -8/Materials | Lost 3 allies 3786 | -8/Materials | Discovered new exit (range 7) 4092 | -8/Materials | Lost 7 parts (1p2n2u2w) 4242 | -8/Materials | Learned Storage trap positions 4281 | -8/Materials | Learned Factory trap positions 4312 | -8/Materials | Learned location of 2 exits from Factory 4335 | -8/Materials | Learned Factory terminal intel 4349 | -8/Materials | Identified exit to Factory 4361 | -8/Materials | Learned 2 Lower Caves zone layouts 4377 | -8/Materials | Learned location of 1 exit from Recycling 4391 | -8/Materials | Build established: Scavenger-Mutant 4525 | -8/Materials | Repaired Weapon Cycler 4680 | -8/Materials | Self-destructed Last Messages --------------- 04443_ Extracted 34 matter. 04444_ R-06 Scavenger collects Beam Rifle. 04481_ Connecting with Repair Station... >>Scan(Weapon Cycler) Scanning Weapon Cycler... Ready to Repair: Weapon Cycler Rating: 4 Time: 44 >>Repair Repairing Weapon Cycler... ETC: 44 04525_ Repair station completes Weapon Cycler repairs. 04525_ Acquired Weapon Cycler. 04642_ Acquired 2 matter. 04656_ Acquired 4 matter. 04673_ A-02 Transporter destroyed. 04678_ Acquired Prototype Energy Gun. 04678_ Identified Imp. Medium Laser. 04679_ R-06 Scavenger collects Prototype Energy Gun. Map ----- +----------------------------------------------------+ | #???? ??## !!! T # #????????? | | #???# ??#!%!!! # #????????? | | #???# ??## !!! # ########## | | #???# ???# + + ] [# | | /######???# ???# # ##### # | | ?????????# ????####+#### ##??# # | | #?????????? ? ????????# ### #### "" # | | #?????????????????????# + "" # | | #?????????????????????# #### "T # | | ?????????????????##### ####### "" # | | ?????????? [ # "" # | | ??????????????############ # # | | ??????????????????????????# ##+### | | ??????????????????????????# # # | | ?????????????????##???????# # =# | | ?????????????????# [????? # "T" # # | | ?????????????????# ????? # """ + "! # | | ??????????######## """"" # ####### T # | | ??????????# * ! # """"" # #?????# " !# | | #???????# # """"" # #?????# # | | #???????#!=""" #! """ ?# ##????###### | | #???????#! Y" # # ############ | | +##???????# [""" # *# + # | | ??????????# # #% # """" # | | ??????????####+#######+#### # ""R" ! # | | ???????????# %@! % # "" " # | | ???????????# rr[[[ + # | | ???????????# u m !* # """ # | | ?????????###+#+## #########+# """ # | | ?????????# # # ! # """ # | | ?????????# ! # # # ! # | | ?????????# # # ! ########## | | ?????????# ]]]# +! "" #????????? | | ?????????#[ ]]]# # "G // #????????? | | ?????????# ]]]# # "" / ##???????? | | ?????????######## #! #???????? | | ??????????####??# ############???????? | | ?????????? ?# ###########????????? | | ?????????? """ ?# # #????????? | | ??????????""""" # # """ """ #????????? | | ??????????""""" # # """ "R" #????????? | | ??????????""""" + # """ " " #????????? | | ????????? """ # + #????????? | | ???????? # # !#????????? | | ???????# ?# # #????????? | | ???????# ?# # #????????? | | ???????#######??# ###########????????? | | ????????????????# #??????????????????? | | ????????????????# ########???????????? | | ????????????????# ## #???????????? | +----------------------------------------------------+ Best States ------------- Heat Dissipation 45 Energy Generation 16 Energy Capacity 290 Matter Stores 300 Matter Capacity 300 Sight Range 16 Terrain Scan Density 10 Armor Coverage 450 Weapon Shielding 66 Weapon Cycling 15 Evasion (%) 40 Targeting Accuracy 5 Recoil Reduction 4 Item Schematics ----------------- Hcp. Storage Unit | -8/Materials | Scanalyzed Robot Schematics ------------------ None Fabricated ------------ Nothing Alien Tech Used ----------------- None Achievements -------------- None Challenges ------------ None Game ------ Seed SlugVampiricSpecial Manual? 0 Play Time 00:24:11 Cumulative 249.1 hours Start 2024.09.10 @ 09:31:32 End 2024.09.10 @ 10:10:28 Sessions 1 Manual Loads 0 Difficulty Rogue Special Mode None Game No. 210 Rogue 210 Adventurer 0 Explorer 0 Win Type - Total 1 Types 0/0/0/1/0/0/0/0/0 Lore% 67 Gallery% 75 Achievement% 56 Wizard Run 0 Options --------- Layout 2 ASCII 0 Keyboard 1 Movement Vi Keybinds 0 Fullscreen 1 Font 32/SmallcapsGlow Map View 77x44 Zoom Use 0% Tactical HUD 1 Map Filters NONE Filters NONE Steam 1 RUN: 9f27e8c6-7919-481c-8927-663a15c897d9